lending/lending_fUSD_20260328
["ID","MTS","AMOUNT","RATE_DAILY","PERIOD"]
[418996468,1774726240259,-500.0,0.00013698,2]
[418996469,1774726240268,-548.0821861,0.00013698,2]
[418996470,1774726240277,-500.0,0.00013698,2]
[418996471,1774726240286,-500.0,0.00013698,2]
[418996472,1774726240296,-500.0,0.00013698,2]
[418996473,1774726240305,-500.0,0.00013698,2]
[418996474,1774726240315,-500.0,0.00013698,2]
[418996475,1774726240324,-500.0,0.00013698,2]
[418996476,1774726240333,-500.0,0.00013698,2]
[418996477,1774726240342,-500.0,0.00013698,2]
[418996478,1774726240352,-500.0,0.00013698,2]
[418996479,1774726240361,-500.0,0.00013698,2]
[418996480,1774726240370,-500.0,0.00013698,2]
[418996481,1774726240380,-500.0,0.00013698,2]
[418996482,1774726240389,-500.0,0.00013698,2]
[418996483,1774726240398,-500.0,0.00013698,2]
[418996484,1774726240407,-500.0,0.00013698,2]
[418996485,1774726240417,-500.0,0.00013698,2]
[418996486,1774726240426,-500.0,0.00013698,2]
[418996487,1774726240435,-500.0,0.00013698,2]
[418996488,1774726240444,-150.0,0.00013699,2]
[418996489,1774726240462,-150.0,0.00013699,2]
[418996490,1774726240475,-150.0,0.00013699,2]
[418996491,1774726240484,-150.0,0.00013699,2]
[418996492,1774726240494,-150.0,0.00013699,2]
[418996493,1774726240503,-587.56,0.00013699,2]
[418996494,1774726240512,-370.96,0.00013699,2]
[418996495,1774726240522,-500.0,0.00013699,2]
[418996496,1774726240531,-500.0,0.00013699,2]
[418996497,1774726240540,-500.0,0.00013699,2]
[418996498,1774726240550,-500.0,0.00013699,2]
[418996499,1774726240559,-166.35931834,0.00013699,2]
[418996500,1774726240568,-500.0,0.00013699,2]
[418996501,1774726240578,-500.0,0.00013699,2]
[418996502,1774726240587,-500.42331564,0.00013699,2]
[418996503,1774726240596,-267.42294845,0.00013699,2]
[418996504,1774726240606,-500.0,0.00013699,2]
[418996505,1774726240615,-500.0,0.00013699,2]
[418996506,1774726240625,-500.0,0.00013699,2]
[418996507,1774726240634,-500.0,0.00013699,2]
[418996508,1774726240644,-438.78752159,0.00013699,2]
[418996509,1774726240653,-523.31,0.000137,2]
[418996510,1774726240662,-150.0,0.000137,2]
[418996511,1774726240672,-150.0,0.000137,2]
[418996512,1774726240681,-217.84187082,0.000137,2]
[418996513,1774726240690,-1047.84,0.000137,2]
[418996514,1774726240700,-166.6,0.000137,2]
[418996515,1774726240709,-1439.59,0.000137,2]
[418996516,1774726240719,-8966.85,0.000137,2]
[418996517,1774726240728,-851.42,0.000137,2]
[418996518,1774726240738,-1450.0,0.0001375,5]
[418996519,1774726240748,-1158.0,0.0001375,5]
[418996520,1774726240757,-4059.5745777,0.00013766,2]
[418996521,1774726240766,-616.12,0.00013778,2]
[418996522,1774726240776,-150.0,0.00013843,2]
[418996523,1774726240785,-299.148323,0.00013844,2]
[418996524,1774726240795,-500.0,0.00013846,2]
[418996525,1774726240803,-14663.93082882,0.00013861,2]
[418996526,1774726240812,-671.40174411,0.00013905,2]
[418996527,1774726240823,-500.0,0.00013905,2]
[418996528,1774726240832,-35382.95731952,0.00013906,2]
[418996529,1774726240841,-162.2,0.00013916,2]
[418996530,1774726240851,-250.0,0.00013951,2]
[418996531,1774726240860,-150.0,0.00013973,2]
[418996532,1774726240870,-150.0,0.00013973,2]
[418996533,1774726240880,-150.0,0.00013973,2]
[418996534,1774726240889,-150.0,0.00013973,2]
[418996535,1774726240899,-510.0,0.00014,2]
[418996536,1774726240908,-1600.0,0.00014102,2]
[418996537,1774726240918,-445.5181395,0.00014115,2]
[418996538,1774726240927,-1000.67594574,0.00014221,2]
[418996539,1774726240936,-1000.0,0.00014221,2]
[418996540,1774726240947,-150.0,0.00014247,2]
[418996541,1774726240956,-150.0,0.00014247,2]
[418996542,1774726240966,-150.0,0.00014247,2]
[418996543,1774726240975,-150.0,0.00014247,2]
[418996544,1774726240984,-374.31074407,0.00014247,2]
[418996545,1774726240994,-1000.0,0.00014247,2]
[418996546,1774726241006,-303.76947288,0.00014247,2]
[418996547,1774726241016,-500.4848322,0.00014247,2]
[418996548,1774726241026,-1000.0,0.00014247,2]
[418996549,1774726241035,-1000.85155912,0.00014247,2]
[418996550,1774726241046,-500.92226367,0.00014247,2]
[418996551,1774726241055,-1000.0,0.00014247,2]
[418996552,1774726241065,-905.8135256,0.00014268,2]
[418996553,1774726241075,-200.0,0.00014293,2]
[418996554,1774726241084,-512.02988832,0.00014371,2]
[418996555,1774726241093,-14663.93082882,0.00014371,2]
[418996556,1774726241103,-587.56,0.00014384,2]
[418996557,1774726241112,-501.9357854,0.00014394,2]
[418996558,1774726241121,-2807.0,0.000144,2]
[418996559,1774726241131,-1570.0,0.000144,2]
[418996560,1774726241140,-35382.95731952,0.00014404,2]
[418996561,1774726241150,-616.12,0.00014461,2]
[418996562,1774726241159,-616.12,0.00014461,2]
[418996563,1774726241298,-616.12,0.00014461,2]
[418996564,1774726241308,-616.12,0.00014461,2]
[418996565,1774726241318,-616.30991446,0.00014461,2]
[418996566,1774726241327,-500.0,0.00014466,2]
[418996567,1774726241336,-189.539922,0.00014473,7]
[418996568,1774726241345,-150.5424,0.000145,2]
[418996569,1774726241355,-312.0,0.000145,2]
[418996570,1774726241364,-953.0,0.000145,2]
[418996571,1774726241373,-1000.0,0.000146,2]
[418996572,1774726241383,-162.2,0.00014689,2]
[418996573,1774726241392,-2807.0,0.0001472,2]
[418996574,1774726241402,-3620.89,0.00014755,2]
[418996575,1774726241411,-1500.0,0.00014768,2]
[418996576,1774726241420,-601.5010306,0.00014772,2]
[418996577,1774726241429,-736.0,0.00014773,2]
[418996578,1774726241438,-1500.0,0.00014795,2]
[418996579,1774726241447,-579.19039319,0.00014795,2]
[418996580,1774726241456,-1500.0,0.00014795,2]
[418996581,1774726241465,-325.60592571,0.00014805,30]
[418996582,1774726241474,-14663.93082882,0.00014881,2]
[418996583,1774726241483,-35382.95731952,0.00014903,2]
[418996584,1774726241492,-3240.0,0.0001497,2]
[418996585,1774726241501,-500.0,0.00014973,2]
[418996586,1774726241510,-500.0,0.00014973,2]
[418996587,1774726241520,-287.00134339,0.00014973,2]
[418996588,1774726241529,-500.0,0.00014973,2]
[418996589,1774726241538,-500.0,0.00014973,2]
[418996590,1774726241547,-500.0,0.00014973,2]
[418996591,1774726241556,-500.0,0.00014973,2]
[418996592,1774726241566,-500.0,0.00014973,2]
[418996593,1774726241575,-500.0,0.00014973,2]
[418996594,1774726241584,-500.0,0.00014973,2]
[418996595,1774726241593,-500.0,0.00014973,2]
[418996596,1774726241603,-500.0,0.00014973,2]
[418996597,1774726241612,-500.0,0.00014973,2]
[418996598,1774726241621,-500.0,0.00014973,2]
[418996599,1774726241630,-500.0,0.00014973,2]
[418996600,1774726241639,-500.0,0.00014973,2]
[418996601,1774726241648,-500.0,0.00014973,2]
[418996602,1774726241657,-500.0,0.00014973,2]
[418996603,1774726241667,-823.0,0.00014996,2]
[418996604,1774726241676,-823.0,0.00014996,2]
[418996605,1774726241685,-665.85,0.00014999,2]
[418996606,1774726241694,-500.0,0.00015,2]
[418996607,1774726241703,-500.0,0.00015,2]
[418996608,1774726241713,-500.0,0.00015,2]
[418996609,1774726241723,-500.0,0.00015,2]
[418996610,1774726241732,-500.0,0.00015,2]
[418996611,1774726241741,-500.0,0.00015,2]
[418996612,1774726241750,-586.43,0.00015,2]
[418996613,1774726241759,-500.0,0.00015,2]
[418996614,1774726241768,-500.0,0.00015,2]
[418996615,1774726241777,-500.0,0.00015,2]
[418996616,1774726241786,-500.0,0.00015,2]
[418996617,1774726241796,-500.0,0.00015,2]
[418996618,1774726241804,-500.0,0.00015,2]
[418996619,1774726241813,-500.0,0.00015,2]
[418996620,1774726241823,-502.92,0.00015,2]
[418996621,1774726241832,-500.0,0.00015,2]
[418996622,1774726241841,-500.0,0.00015,2]
[418996623,1774726241850,-500.0,0.00015,2]
[418996624,1774726241860,-500.0,0.00015,2]
[418996625,1774726241869,-500.0,0.00015,2]
[418996626,1774726241878,-500.0,0.00015,2]
[418996627,1774726241887,-500.0,0.00015,2]
[418996628,1774726241896,-500.0,0.00015,2]
[418996629,1774726241905,-419.77,0.00015,2]
[418996630,1774726241914,-500.0,0.00015,2]
[418996631,1774726241923,-500.0,0.00015,2]
[418996632,1774726241932,-500.0,0.00015,2]
[418996633,1774726241942,-500.0,0.00015,2]
[418996634,1774726241950,-513.53,0.00015,2]
[418996635,1774726241960,-300.0,0.00015,2]
[418996636,1774726241969,-3292.0,0.00015056,2]
[418996637,1774726241978,-587.56,0.00015068,2]
[418996638,1774726241987,-512.02988832,0.00015136,2]
[418996639,1774726241996,-4722.0,0.00015138,7]
[418996640,1774726242005,-336.35,0.0001516,2]
[418996641,1774726242014,-5630.37221752,0.000152,2]
[418996642,1774726242023,-350.0,0.0001527,4]
[418996643,1774726242032,-2807.0,0.000153,2]
[418996644,1774726242041,-2000.0,0.00015342,2]
[418996645,1774726242050,-2000.0,0.00015342,2]
[418996646,1774726242060,-14663.93082882,0.0001539,2]
[418996647,1774726242069,-500.0,0.00015401,2]
[418996648,1774726242079,-35382.95731952,0.00015401,2]
[418996649,1774726242088,-162.2,0.00015462,2]
[418996650,1774726242098,-150.0,0.000155,2]
[418996651,1774726242108,-4000.0,0.00015507,2]
[418996652,1774726242117,-1600.0,0.00015513,2]
[418996653,1774726242126,-1000.0,0.00015521,2]
[418996654,1774726242136,-1000.0,0.00015521,2]
[418996655,1774726242145,-897.4813256,0.00015521,2]
[418996656,1774726242154,-1000.0,0.00015521,2]
[418996657,1774726242165,-1000.0,0.00015521,2]
[418996658,1774726242174,-1000.0,0.00015521,2]
[418996659,1774726242183,-1000.0,0.00015521,2]
[418996660,1774726242193,-1000.0,0.00015521,2]
[418996661,1774726242202,-1000.0,0.00015521,2]
[418996662,1774726242211,-507.33813259,0.00015521,2]
[418996663,1774726242220,-1000.0,0.00015521,2]
[418996664,1774726242230,-1000.0,0.00015521,2]
[418996665,1774726242240,-1000.0,0.00015521,2]
[418996666,1774726242249,-1000.0,0.00015521,2]
[418996667,1774726242259,-294.8,0.00015537,2]
[418996668,1774726242269,-5888.0,0.00015545,2]
[418996669,1774726242279,-1638.74267491,0.0001568,2]
[418996670,1774726242288,-1000.0,0.00015729,2]
[418996671,1774726242300,-1000.0,0.00015732,2]
[418996672,1774726242311,-1000.0,0.00015741,2]
[418996673,1774726242321,-350.0,0.00015746,3]
[418996674,1774726242332,-1000.0,0.00015748,2]
[418996675,1774726242342,-373.0,0.00015753,2]
[418996676,1774726242352,-587.56,0.00015753,2]
[418996677,1774726242363,-1000.0,0.00015764,2]
[418996678,1774726242373,-5888.0,0.00015769,2]
[418996679,1774726242382,-5888.0,0.00015781,2]
[418996680,1774726242391,-853.0,0.00015781,2]
[418996681,1774726242401,-5888.0,0.00015789,2]
[418996682,1774726242411,-1060.32865217,0.00015792,2]
[418996683,1774726242421,-1000.0,0.00015798,2]
[418996684,1774726242430,-851.42,0.000158,2]
[418996685,1774726242440,-2016.0,0.000158,2]
[418996686,1774726242450,-1000.0,0.00015808,2]
[418996687,1774726242460,-1000.0,0.0001581,2]
[418996688,1774726242470,-5888.0,0.00015839,2]
[418996689,1774726242480,-1000.0,0.0001584,2]
[418996690,1774726242489,-1959.26279,0.0001584,2]
[418996691,1774726242499,-1959.26279,0.0001584,2]
[418996692,1774726242508,-1000.0,0.00015841,2]
[418996693,1774726242517,-1000.0,0.00015844,2]
[418996694,1774726242526,-1000.0,0.00015845,2]
[418996695,1774726242536,-1959.2628,0.0001585,2]
[418996696,1774726242545,-1000.0,0.00015859,2]
[418996697,1774726242555,-1000.0,0.00015861,2]
[418996698,1774726242565,-1000.0,0.00015871,2]
[418996699,1774726242574,-1000.0,0.00015884,2]
[418996700,1774726242584,-2000.0,0.0001589,2]
[418996701,1774726242593,-500.0,0.0001589,2]
[418996702,1774726242603,-1000.0,0.00015891,2]
[418996703,1774726242612,-4000.0,0.00015895,2]
[418996704,1774726242621,-35382.95731952,0.000159,2]
[418996705,1774726242631,-571.45041994,0.000159,2]
[418996706,1774726242640,-512.02988832,0.000159,2]
[418996707,1774726242649,-14663.93082882,0.000159,2]
[418996709,1774726242659,-5888.0,0.00015903,2]
[418996710,1774726242668,-1000.0,0.00015906,2]
[418996711,1774726242677,-1000.0,0.0001591,2]
[418996712,1774726242686,-1000.0,0.00015919,2]
[418996713,1774726242695,-192.492138,0.00015919,2]
[418996714,1774726242705,-350.0,0.0001593,4]
[418996715,1774726242714,-1967.41159405,0.00015956,2]
[418996716,1774726242724,-2136.31940232,0.00015956,2]
[418996717,1774726242733,-3818.32173057,0.0001596,2]
[418996718,1774726242743,-1000.0,0.00015961,2]
[418996719,1774726242753,-1000.0,0.00015963,2]
[418996720,1774726242763,-1000.0,0.00015965,2]
[418996722,1774726242773,-803.24535537,0.0001597,2]
[418996723,1774726242782,-500.0,0.00015973,2]
[418996724,1774726242793,-548.13868249,0.00015973,2]
[418996725,1774726242802,-500.0,0.00015973,2]
[418996726,1774726242811,-1000.0,0.00015975,2]
[418996727,1774726242821,-5888.0,0.00015975,2]
[418996728,1774726242831,-1000.0,0.00015981,2]
[418996729,1774726242840,-1000.0,0.00015989,2]
[418996730,1774726242850,-307.0224808,0.0001599,2]
[418996731,1774726242859,-20083.900719,0.00015996,2]
[418996732,1774726242868,-151.0,0.00015997,2]
[418996733,1774726242877,-151.0,0.00015997,2]
[418996734,1774726242886,-1000.0,0.00015998,2]
[418996735,1774726242895,-665.85,0.00015999,2]
[418996736,1774726242904,-665.85,0.00015999,2]
[418996737,1774726242914,-665.85,0.00015999,2]
[418996738,1774726242924,-665.85,0.00015999,2]
[418996739,1774726242933,-666.04503174,0.00015999,2]
[418996740,1774726242943,-500.0,0.00015999,2]
[418996741,1774726242952,-214.95038261,0.00015999,2]
[418996742,1774726242963,-5317071.333608,0.00016,2]
[418996743,1774726243407,-68449.25018441,0.00016,2]
[418996744,1774726243433,-3145907.96135285,0.00016,2]
[418996745,1774726243443,-4781552.6056977,0.00016,2]
[418996746,1774726243486,-151.0,0.00011995,2]
[418996747,1774726243496,-406157.66932907,0.00016,2]
[418996748,1774726243554,-2076.5198818,0.00016,2]
[418996749,1774726243566,-1555.17783652,0.00016,2]
[418996765,1774726244030,-162800.82075507,0.00016,2]
[418996766,1774726244051,-540.16205524,0.00016,2]
[418996779,1774726245530,-456.96597722,0.00016,2]
[418996781,1774726245541,-696.77283446,0.00016,2]
[418996785,1774726245809,-5646.121,0.00016,2]
[418996786,1774726245868,-107680.4811745,0.00016,2]
[418996787,1774726245984,-582.7291639,0.00016,2]
[418996791,1774726273875,10000.01,0.00011312,2]
[418996792,1774726273901,10000.01,0.00011312,2]
[418996793,1774726283222,-10000.01,0.00011312,2]
[418996794,1774726283332,-10000.01,0.00011312,2]
[418996798,1774726352251,700.0,9.799e-05,2]
[418996799,1774726387219,179.0,9.799e-05,3]
[418996800,1774726417736,963.91,9.53e-05,2]
[418996801,1774726479277,613.92,9.164e-05,2]
[418996802,1774726539443,273.54030607,0.00010204,30]
[418996803,1774726540711,500.0,8.851e-05,2]
[418996804,1774726541229,800.0,9.695e-05,2]
[418996805,1774726541946,-756.88974432,0.0001,2]
[418996806,1774726541977,-654.11432055,0.0001,2]
[418996807,1774726603133,566.82,9.632e-05,2]
[418996809,1774726766404,1852.42,9.975e-05,2]
[418996810,1774726844497,-261.0,0.00010034,2]
[418996811,1774726844527,-801.7,0.00010034,2]
[418996812,1774726844555,-1079.0,0.00010068,2]
[418996813,1774726844772,-4283.4,0.00010068,2]
[418996814,1774726844808,-973.75,0.00010068,2]
[418996815,1774726848354,-150.0,0.00010034,2]
[418996816,1774726848385,-459.46,0.00010068,2]
[418996817,1774726848414,-1200.0,0.00010075,2]
[418996818,1774726848443,-300.0,0.00010075,2]
[418996819,1774726848472,-300.0,0.00010075,2]
[418996820,1774726848500,-1200.0,0.00010076,2]
[418996821,1774726848528,-300.0,0.00010076,2]
[418996822,1774726848784,-2181.09,0.00010077,2]
[418996823,1774726851253,-2818.91,0.00010077,2]
[418996824,1774726851282,-250.0,0.00010119,2]
[418996825,1774726851331,-3862.19,0.00010194,2]
[418996826,1774726851363,-1137.81,0.00010194,2]
[418996827,1774726851392,-1211.57,0.00010303,2]
[418996828,1774726851420,-250.0,0.00010309,2]
[418996829,1774726851449,-1060.0,0.00010409,2]
[418996830,1774726851478,-900.0,0.00010543,2]
[418996831,1774726851507,-331.98,0.00010611,2]
[418996832,1774726851608,-217.29,0.00010706,2]
[418996833,1774726853730,339.9,5.117e-05,2]
[418996834,1774726854094,3.98,5.386e-05,2]
[418996835,1774726854122,150.56696842,5.386e-05,2]
[418996836,1774726854149,185.35303158,5.386e-05,2]
[418996837,1774726854186,110.43234193,5.655e-05,2]
[418996838,1774726854211,184.39018234,5.655e-05,2]
[418996839,1774726854238,45.07747573,5.655e-05,2]
[418996840,1774726854330,178.11170307,5.925e-05,2]
[418996841,1774726854356,161.78829693,5.925e-05,2]
[418996842,1774726854432,-782.71,0.00010706,2]
[418996843,1774726854509,339.9,6.194e-05,2]
[418996844,1774726854705,339.9,6.463e-05,2]
[418996845,1774726854900,339.9,6.733e-05,2]
[418996846,1774726855316,339.9,7.002e-05,2]
[418996847,1774726855567,339.9,7.271e-05,2]
[418996848,1774726855980,339.9,7.541e-05,2]
[418996849,1774726856187,339.9,7.81e-05,2]
[418996850,1774726856379,339.9,8.079e-05,2]
[418996851,1774726856581,339.9,8.349e-05,2]
[418996852,1774726856779,339.9,8.618e-05,2]
[418996853,1774726856968,339.9,8.887e-05,2]
[418996854,1774726857378,339.9,9.157e-05,2]
[418996855,1774726857596,339.9,9.426e-05,2]
[418996856,1774726857790,339.9,9.695e-05,2]
[418996857,1774726857990,339.9,9.964e-05,2]
[418996858,1774726858187,339.9,0.00010234,2]
[418996859,1774726860118,289.99129237,0.0001,2]
[418996860,1774726911185,2339.4,9.712e-05,2]
[418996861,1774726911543,2110.0,0.0001003,2]
[418996862,1774726912047,2181.18,0.00010242,2]
[418996863,1774726928115,1500.0,0.00010154,2]
[418996865,1774726958103,500.0,0.0001015,2]
[418996866,1774726976955,1079.43870763,9.89e-05,2]
[418996867,1774726977117,590.56129237,9.89e-05,2]
[418996868,1774727002883,200.0,9.3e-05,2]
[418996869,1774727015973,327.09,0.0001012,2]
[418996876,1774727226195,1130.0,9.595e-05,2]
[418996877,1774727226703,1203.67,9.689e-05,2]
[418996878,1774727227224,860.0,0.00010048,2]
[418996879,1774727293629,800.0,9.183e-05,2]
[418996880,1774727294231,800.0,0.00010055,2]
[418996881,1774727356622,699.4,9.365e-05,2]
[418996883,1774727431700,-264.0,0.00010233,2]
[418996884,1774727431711,-700.0,0.00010233,2]
[418996885,1774727431720,-600.0,0.00010378,2]
[418996886,1774727431731,-1300.0,0.00010558,2]
[418996887,1774727431740,-1100.0,0.00010563,2]
[418996888,1774727431751,-250.0,0.0001058,2]
[418996889,1774727431761,-481.53990502,0.00010597,2]
[418996890,1774727431771,-1200.0,0.00010629,2]
[418996891,1774727431781,-5000.0,0.0001063,2]
[418996892,1774727431791,-300.0,0.00010694,2]
[418996893,1774727431803,-300.0,0.00010694,2]
[418996894,1774727431813,-300.0,0.00010694,2]
[418996895,1774727431824,-300.0,0.00010695,2]
[418996896,1774727431835,-1200.0,0.00010695,2]
[418996897,1774727431845,-800.0,0.00010695,2]
[418996898,1774727431856,-300.0,0.00010696,2]
[418996899,1774727431867,-2200.0,0.00010697,2]
[418996900,1774727431877,-481.53990501,0.00010728,2]
[418996901,1774727431887,-810.0,0.00010848,2]
[418996902,1774727431899,-763.62,0.00010852,2]
[418996903,1774727431909,-481.53990501,0.00010859,2]
[418996904,1774727431919,-146713.29893344,0.0001086,2]
[418996910,1774727432048,-51150.80496968,0.0001086,2]
[418996912,1774727432059,-5719.49229652,0.0001086,2]
[418996915,1774727432075,-26755.19714784,0.0001086,2]
[418996917,1774727432087,-860.2895372,0.0001086,2]
[418996919,1774727432099,-1532.35,0.0001086,2]
[418996921,1774727432110,-672.700005,0.0001086,2]
[418996932,1774727437806,-500.0,0.00010859,2]
[418996933,1774727437820,-414.58175708,0.00010859,2]
[418996934,1774727437833,-250.86857818,0.00010859,2]
[418996935,1774727437912,-249.13142182,0.00010859,2]
[418996936,1774727437925,-157.4888191,0.00010859,2]
[418996937,1774727437968,-342.5111809,0.00010859,2]
[418996938,1774727437979,-500.0,0.00010859,2]
[418996939,1774727437990,-500.0,0.00010859,2]
[418996940,1774727438000,-500.0,0.00010859,2]
[418996941,1774727438011,-413.25930188,0.00010859,2]
[418996942,1774727438020,-500.0,0.00010859,2]
[418996943,1774727438031,-500.0,0.00010859,2]
[418996944,1774727438043,-184.02274197,0.00010859,2]
[418996945,1774727438055,-81.39187051,0.00010859,2]
[418996946,1774727438072,-418.60812949,0.00010859,2]
[418996947,1774727438082,-60.82858751,0.00010859,2]
[418996948,1774727438095,-435.52226899,0.00010859,2]
[418996949,1774727438111,-3.6491435,0.00010859,2]
[418996950,1774727438123,-500.0,0.00010859,2]
[418996952,1774727438136,-500.0,0.00010859,2]
[418996954,1774727438147,-500.0,0.00010859,2]
[418996955,1774727438158,-237.83448075,0.00010859,2]
[418996956,1774727438172,-262.16551925,0.00010859,2]
[418996957,1774727438184,-500.0,0.00010859,2]
[418996958,1774727438195,-148.29817061,0.00010859,2]
[418996959,1774727438208,-251.76529873,0.00010859,2]
[418996974,1774727440129,-99.93653066,0.00010859,2]
[418996975,1774727440140,-500.0,0.00010859,2]
[418996976,1774727440151,-500.0,0.00010859,2]
[418996977,1774727440162,-54.30207087,0.00010859,2]
[418996978,1774727440175,-445.69792913,0.00010859,2]
[418996979,1774727440186,-500.0,0.00010859,2]
[418996980,1774727440196,-500.0,0.00010859,2]
[418996981,1774727440206,-291.60207087,0.00010859,2]
[418996982,1774727440220,-208.39792913,0.00010859,2]
[418996983,1774727440230,-500.0,0.00010859,2]
[418996984,1774727440240,-500.0,0.00010859,2]
[418996985,1774727440251,-500.0,0.00010859,2]
[418996986,1774727440262,-500.0,0.00010859,2]
[418996987,1774727440272,-500.0,0.00010859,2]
[418996988,1774727440283,-500.0,0.00010859,2]
[418996989,1774727440294,-500.0,0.00010859,2]
[418996990,1774727440305,-500.0,0.00010859,2]
[418996991,1774727440316,-500.0,0.00010859,2]
[418996992,1774727440327,-203.65179882,0.00010859,2]
[418996993,1774727440337,-500.0,0.00010859,2]
[418996994,1774727440348,-500.0,0.00010859,2]
[418996995,1774727440359,-500.0,0.00010859,2]
[418996996,1774727440370,-500.0,0.00010859,2]
[418996997,1774727440381,-500.0,0.00010859,2]
[418996998,1774727440391,-6389.74331829,0.0001086,2]
[418996999,1774727440405,-503.44357086,0.0001086,2]
[418997000,1774727440417,-2500.0,0.0001086,2]
[418997001,1774727440430,-1882.66603983,0.0001086,2]
[418997002,1774727440442,-713.67957342,0.0001086,2]
[418997003,1774727440468,-2254606.33460792,0.0001086,2]
[418997004,1774727440478,-150.0,0.00010949,2]
[418997005,1774727440489,-69037.59133638,0.0001095,2]
[418997006,1774727440500,-185.34,0.00010959,2]
[418997007,1774727440510,-9999.99,0.0001096,2]
[418997008,1774727440521,-9999.99,0.0001096,2]
[418997009,1774727440532,-4999.99,0.0001096,2]
[418997010,1774727440543,-121880.42,0.0001096,2]
[418997011,1774727440554,-150.99,0.0001096,2]
[418997012,1774727440564,-351.15,0.0001096,2]
[418997013,1774727440577,-1400.0,0.00010961,2]
[418997014,1774727440587,-9972.69,0.00010961,2]
[418997015,1774727440598,-5590.37,0.00010961,2]
[418997016,1774727440609,-299.99,0.00010961,2]
[418997017,1774727440621,-1479.88,0.00010961,2]
[418997018,1774727440631,-9999.99,0.00010961,2]
[418997019,1774727440642,-167.62270379,0.00010973,2]
[418997020,1774727440653,-500.0,0.00010973,2]
[418997021,1774727440665,-6762.1846,0.00010986,2]
[418997022,1774727440675,-2500.0,0.00010986,2]
[418997036,1774727440836,-6911.10840627,0.00011,2]
[418997038,1774727440846,-309.6,0.00011038,2]
[418997040,1774727440855,-151.0,0.00011079,2]
[418997042,1774727440865,-151.0,0.00011079,2]
[418997044,1774727440875,-151.0,0.00011079,2]
[418997046,1774727440885,-151.0,0.00011079,2]
[418997048,1774727440894,-151.0,0.00011079,2]
[418997050,1774727440903,-151.0,0.00011079,2]
[418997052,1774727440912,-151.0,0.00011079,2]
[418997054,1774727440921,-151.0,0.00011079,2]
[418997056,1774727440931,-151.0,0.00011079,2]
[418997058,1774727440940,-151.0,0.00011079,2]
[418997060,1774727440949,-151.0,0.00011079,2]
[418997062,1774727440958,-151.0,0.00011079,2]
[418997064,1774727440967,-151.0,0.00011079,2]
[418997066,1774727440977,-151.0,0.00011079,2]
[418997068,1774727440987,-151.0,0.00011079,2]
[418997070,1774727440996,-151.0,0.00011079,2]
[418997072,1774727441005,-151.0,0.00011079,2]
[418997074,1774727441014,-151.0,0.00011079,2]
[418997076,1774727441023,-151.0,0.00011079,2]
[418997078,1774727441032,-151.0,0.00011079,2]
[418997079,1774727441042,-151.0,0.00011079,2]
[418997081,1774727441052,-151.0,0.00011079,2]
[418997084,1774727441062,-151.0,0.00011079,2]
[418997085,1774727441072,-151.0,0.00011079,2]
[418997087,1774727441082,-151.0,0.00011079,2]
[418997089,1774727441091,-151.0,0.00011079,2]
[418997091,1774727441100,-151.0,0.00011079,2]
[418997093,1774727441109,-1386.78395259,0.00011079,2]